fUST/lending_fUST_20250803
["ID","MTS","AMOUNT","RATE_DAILY","PERIOD"]
[377028435,1754212257647,-500.0,0.00029273,5]
[377028436,1754212257658,-500.0,0.00029273,2]
[377028437,1754212257668,-500.0,0.00029273,5]
[377028438,1754212257678,-500.0,0.00029273,5]
[377028439,1754212257688,-501.93875642,0.00029273,5]
[377028440,1754212257697,-500.0,0.00029273,5]
[377028441,1754212257708,-500.0,0.00029273,5]
[377028442,1754212257718,-158.56150722,0.00029273,5]
[377028443,1754212257727,-500.0,0.00029273,5]
[377028444,1754212257738,-348.59080645,0.00029273,5]
[377028445,1754212257747,-501.40624993,0.00029273,5]
[377028446,1754212257758,-500.0,0.00029273,5]
[377028447,1754212257767,-500.0,0.00029273,5]
[377028448,1754212257777,-500.0,0.00029273,2]
[377028449,1754212257786,-500.0,0.00029273,5]
[377028450,1754212257796,-500.0,0.00029273,5]
[377028451,1754212257805,-500.0,0.00029273,5]
[377028452,1754212257814,-500.0,0.00029273,5]
[377028453,1754212257823,-500.0,0.00029273,5]
[377028454,1754212257832,-161.98013008,0.00029273,5]
[377028455,1754212257841,-500.0,0.00029273,5]
[377028456,1754212257850,-620.30799318,0.00029273,5]
[377028457,1754212257859,-500.0,0.00029273,5]
[377028458,1754212257869,-500.0,0.00029273,5]
[377028459,1754212257878,-500.0,0.00029273,5]
[377028460,1754212257888,-500.0,0.00029273,5]
[377028461,1754212257897,-500.0,0.00029273,5]
[377028462,1754212257906,-500.0,0.00029273,5]
[377028463,1754212257915,-500.0,0.00029273,5]
[377028464,1754212257924,-500.0,0.00029273,5]
[377028465,1754212257934,-500.0,0.00029273,5]
[377028466,1754212257943,-501.3284403,0.00029273,5]
[377028467,1754212257952,-500.0,0.00029273,5]
[377028468,1754212257961,-500.0,0.00029273,5]
[377028469,1754212257971,-500.0,0.00029273,5]
[377028470,1754212257980,-500.0,0.00029273,5]
[377028471,1754212257989,-645.44337989,0.00029273,5]
[377028472,1754212257998,-501.89009665,0.00029273,5]
[377028473,1754212258008,-500.0,0.00029273,2]
[377028474,1754212258017,-211.0,0.000293,30]
[377028475,1754212258026,-231.62108626,0.000293,3]
[377028476,1754212258035,-3082.72,0.00029304,4]
[377028477,1754212258044,-706.3,0.00029305,3]
[377028478,1754212258053,-353.14,0.00029305,3]
[377028479,1754212258062,-1500.0,0.00029368,5]
[377028480,1754212258071,-350.0,0.00029368,5]
[377028481,1754212258081,-502.0572836,0.00029368,5]
[377028482,1754212258090,-1500.0,0.00029368,5]
[377028483,1754212258100,-1182.57103385,0.00029368,5]
[377028484,1754212258109,-1000.0,0.00029368,5]
[377028485,1754212258119,-511.68266514,0.00029368,5]
[377028486,1754212258128,-511.46934236,0.00029368,5]
[377028487,1754212258137,-1500.0,0.00029368,5]
[377028488,1754212258146,-1090.09791502,0.00029368,5]
[377028489,1754212258155,-1500.0,0.00029368,5]
[377028490,1754212258244,-1502.98394793,0.00029368,5]
[377028491,1754212258254,-1500.0,0.00029368,5]
[377028492,1754212258263,-1216.6354354,0.00029368,5]
[377028493,1754212258274,-1500.0,0.00029368,5]
[377028494,1754212258283,-1500.0,0.00029368,5]
[377028495,1754212258292,-1500.0,0.00029368,5]
[377028496,1754212258301,-501.95792498,0.00029368,5]
[377028497,1754212258310,-1500.0,0.00029368,5]
[377028498,1754212258320,-420.0,0.00029402,2]
[377028499,1754212258329,-260.0,0.00029448,2]
[377028500,1754212258340,-1500.0,0.000295,2]
[377028501,1754212258349,-753.0,0.00029531,2]
[377028502,1754212258359,-1000.0,0.00029616,5]
[377028503,1754212258369,-1446.89120276,0.00029616,5]
[377028504,1754212258378,-1399.68102324,0.00029616,5]
[377028505,1754212258388,-2000.0,0.00029616,5]
[377028506,1754212258397,-2000.0,0.00029616,5]
[377028507,1754212258407,-295.94,0.00029654,30]
[377028508,1754212258416,-5588.16705637,0.00029666,2]
[377028509,1754212258425,-200.0,0.00029699,10]
[377028510,1754212258435,-56970.28,0.000297,2]
[377028511,1754212258444,-800.0,0.00029805,2]
[377028512,1754212258453,-578.1822057,0.00029821,5]
[377028513,1754212258463,-954.1914411,0.00029821,5]
[377028514,1754212258473,-800.14602026,0.00029821,5]
[377028515,1754212258483,-1002.71865441,0.00029821,5]
[377028516,1754212258492,-501.98962838,0.00029821,5]
[377028517,1754212258502,-1000.0,0.00029821,5]
[377028518,1754212258511,-1200.0,0.00029821,5]
[377028519,1754212258520,-1001.08034465,0.00029821,5]
[377028520,1754212258530,-1000.0,0.00029821,5]
[377028521,1754212258544,-1000.0,0.00029821,5]
[377028522,1754212258553,-1000.0,0.00029821,5]
[377028523,1754212258563,-500.98868041,0.00029821,5]
[377028524,1754212258572,-1104.84922614,0.00029821,2]
[377028525,1754212258583,-1000.0,0.00029821,5]
[377028526,1754212258592,-1027.71132116,0.00029821,5]
[377028527,1754212258601,-1000.0,0.00029821,5]
[377028528,1754212258610,-1000.0,0.00029821,5]
[377028529,1754212258619,-611.66654904,0.00029821,5]
[377028530,1754212258628,-1000.0,0.00029821,5]
[377028531,1754212258637,-1000.0,0.00029821,5]
[377028532,1754212258646,-1000.0,0.00029821,2]
[377028533,1754212258655,-1000.0,0.00029821,5]
[377028534,1754212258665,-1000.0,0.00029821,5]
[377028535,1754212258674,-1000.0,0.00029821,5]
[377028536,1754212258683,-1000.0,0.00029821,5]
[377028537,1754212258692,-1000.0,0.00029821,5]
[377028538,1754212258702,-201.73428693,0.00029821,5]
[377028539,1754212258711,-892.52153496,0.00029821,5]
[377028540,1754212258720,-1000.0,0.00029821,5]
[377028541,1754212258730,-564.84152329,0.00029821,5]
[377028542,1754212258739,-1000.0,0.00029821,5]
[377028543,1754212258749,-1000.0,0.00029821,5]
[377028544,1754212258758,-1000.0,0.00029821,5]
[377028545,1754212258768,-644.1965881,0.00029821,5]
[377028546,1754212258777,-1000.0,0.00029821,5]
[377028547,1754212258786,-1000.0,0.00029821,5]
[377028548,1754212258796,-1000.0,0.00029821,5]
[377028549,1754212258805,-1000.0,0.00029821,5]
[377028550,1754212258814,-1000.0,0.00029821,5]
[377028551,1754212258823,-500.0,0.00029821,2]
[377028552,1754212258832,-800.0,0.00029854,2]
[377028553,1754212258841,-150.0,0.00029873,5]
[377028554,1754212258851,-500.0,0.00029873,5]
[377028555,1754212258860,-178.0,0.00029877,90]
[377028556,1754212258869,-800.0,0.00029881,2]
[377028557,1754212258878,-214.72339961,0.000299,2]
[377028558,1754212258887,-5423.77,0.000299,7]
[377028559,1754212258896,-800.0,0.00029913,2]
[377028560,1754212258905,-743.1218894,0.00029916,5]
[377028561,1754212258914,-450.0,0.00029916,5]
[377028562,1754212258923,-2000.0,0.00029916,5]
[377028563,1754212258932,-2000.0,0.00029916,5]
[377028564,1754212258942,-2000.0,0.00029916,5]
[377028565,1754212258951,-2000.0,0.00029916,5]
[377028566,1754212258961,-2000.0,0.00029916,5]
[377028567,1754212258970,-1515.24149538,0.00029916,5]
[377028568,1754212258980,-2000.0,0.00029916,5]
[377028569,1754212258989,-2000.0,0.00029916,5]
[377028570,1754212258998,-4451.41249159,0.00029927,2]
[377028571,1754212259007,-800.0,0.00029933,2]
[377028572,1754212259016,-800.0,0.00029956,2]
[377028573,1754212259026,-800.0,0.0002998,2]
[377028574,1754212259035,-800.0,0.00029991,2]
[377028575,1754212259044,-360.0,0.00029996,2]
[377028576,1754212259053,-165.46,0.0003,5]
[377028577,1754212259062,-193.06559734,0.0003,2]
[377028578,1754212259070,-401.91592973,0.0003,10]
[377028579,1754212259080,-1560.56407788,0.0003,10]
[377028580,1754212259089,-8169.00736094,0.0003,10]
[377028581,1754212259098,-500.0,0.0003,14]
[377028582,1754212259107,-500.0,0.0003,14]
[377028583,1754212259116,-500.0,0.0003,14]
[377028584,1754212259125,-500.0,0.0003,14]
[377028585,1754212259135,-500.0,0.0003,14]
[377028586,1754212259144,-500.0,0.0003,14]
[377028587,1754212259153,-500.0,0.0003,14]
[377028588,1754212259162,-500.0,0.0003,14]
[377028589,1754212259171,-500.0,0.0003,14]
[377028590,1754212259387,-500.0,0.0003,14]
[377028591,1754212259397,-500.0,0.0003,14]
[377028592,1754212259406,-500.0,0.0003,14]
[377028593,1754212259415,-255.395,0.0003,2]
[377028594,1754212259424,-169.26056,0.0003,30]
[377028595,1754212259434,-10300.0,0.0003,15]
[377028596,1754212259443,-10572.33,0.0003,30]
[377028597,1754212259452,-818.76,0.0003,7]
[377028598,1754212259461,-500.0,0.0003,5]
[377028599,1754212259471,-312.16666667,0.0003,30]
[377028600,1754212259480,-1500.0,0.0003,2]
[377028601,1754212259489,-4000.0,0.0003,4]
[377028602,1754212259498,-800.0,0.00030015,2]
[377028603,1754212259507,-1026.0,0.000301,2]
[377028604,1754212259516,-400.0,0.00030137,120]
[377028605,1754212259526,-295.94,0.00030137,30]
[377028606,1754212259538,-2500.0,0.00030164,5]
[377028607,1754212259547,-2025.25878385,0.00030164,5]
[377028608,1754212259556,-200.0,0.00030169,120]
[377028609,1754212259566,-308.60243,0.000302,120]
[377028610,1754212259575,-315.45505,0.000302,120]
[377028611,1754212259585,-201.99723,0.000302,120]
[377028612,1754212259595,-212.85139,0.000302,120]
[377028613,1754212259605,-200.0,0.000302,120]
[377028614,1754212259616,-2167.36,0.000302,7]
[377028615,1754212259625,-2147.0,0.00030204,2]
[377028616,1754212259635,-970.0,0.00030204,2]
[377028617,1754212259644,-217.20492,0.000303,120]
[377028618,1754212259653,-502.21827614,0.00030368,5]
[377028619,1754212259662,-1800.0,0.00030368,5]
[377028620,1754212259671,-1500.0,0.00030368,5]
[377028621,1754212259680,-709.80635091,0.00030368,5]
[377028622,1754212259690,-1100.48591849,0.00030368,5]
[377028623,1754212259699,-1500.0,0.00030368,5]
[377028624,1754212259709,-1500.0,0.00030368,5]
[377028625,1754212259718,-502.27225514,0.00030368,5]
[377028626,1754212259727,-1500.0,0.00030368,5]
[377028627,1754212259736,-1029.84155379,0.00030368,5]
[377028628,1754212259745,-1005.47976507,0.00030368,5]
[377028629,1754212259754,-1500.0,0.00030368,2]
[377028630,1754212259763,-1500.0,0.00030368,5]
[377028631,1754212259772,-864.81339353,0.00030368,5]
[377028632,1754212259781,-955.89667728,0.00030368,5]
[377028633,1754212259790,-1005.73271087,0.00030368,5]
[377028634,1754212259800,-1502.50247681,0.00030368,5]
[377028635,1754212259810,-1500.0,0.00030368,5]
[377028636,1754212259819,-1500.0,0.00030368,5]
[377028637,1754212259828,-1500.0,0.00030368,5]
[377028638,1754212259837,-1500.0,0.00030368,5]
[377028639,1754212259846,-1500.0,0.00030368,5]
[377028640,1754212259855,-880.94454171,0.00030368,5]
[377028641,1754212259865,-1630.62758701,0.00030368,5]
[377028642,1754212259874,-200.0,0.00030369,120]
[377028643,1754212259882,-150.0,0.00030373,5]
[377028644,1754212259891,-150.0,0.00030373,3]
[377028645,1754212259901,-211.0,0.000304,60]
[377028646,1754212259910,-250.0,0.00030421,5]
[377028647,1754212259920,-200.0,0.00030442,120]
[377028648,1754212259929,-600.0,0.0003045,10]
[377028649,1754212259939,-550.0,0.00030464,5]
[377028650,1754212259949,-1024.72792444,0.00030464,5]
[377028651,1754212259959,-2500.0,0.00030464,5]
[377028652,1754212259970,-216.36103699,0.00030464,5]
[377028653,1754212259980,-2507.76762725,0.00030464,5]
[377028654,1754212259990,-313.15387188,0.00030464,5]
[377028655,1754212259999,-2500.0,0.00030464,5]
[377028656,1754212260008,-2500.0,0.00030464,5]
[377028657,1754212260017,-200.0,0.00030512,120]
[377028658,1754212260026,-460.0,0.00030544,2]
[377028659,1754212260036,-156.7416455,0.00030583,30]
[377028660,1754212260045,-153.0,0.00030583,30]
[377028661,1754212260054,-153.0,0.00030583,30]
[377028662,1754212260064,-153.0,0.00030583,30]
[377028663,1754212260073,-153.0,0.00030583,30]
[377028664,1754212260082,-153.0,0.00030583,30]
[377028665,1754212260092,-153.0,0.00030583,30]
[377028666,1754212260101,-153.0,0.00030583,30]
[377028667,1754212260110,-153.0,0.00030583,30]
[377028668,1754212260120,-153.0,0.00030583,30]
[377028669,1754212260129,-153.0,0.00030583,30]
[377028670,1754212260139,-3082.72,0.00030673,6]
[377028671,1754212260149,-527.6003282,0.00030712,5]
[377028672,1754212260158,-295.94,0.00030823,30]
[377028673,1754212260167,-255.395,0.00030824,2]
[377028674,1754212260176,-200.0,0.00030899,120]
[377028675,1754212260186,-308.60243,0.000309,120]
[377028676,1754212260196,-212.75,0.000309,90]
[377028677,1754212260205,-1000.0,0.00030916,5]
[377028678,1754212260215,-504.8011171,0.00030916,5]
[377028679,1754212260224,-1501.38135654,0.00030916,5]
[377028680,1754212260234,-2000.0,0.00030916,5]
[377028681,1754212260243,-1503.43264542,0.00030916,5]
[377028682,1754212260253,-2000.0,0.00030916,2]
[377028683,1754212260262,-281.97841954,0.00030916,5]
[377028684,1754212260272,-2000.0,0.00030916,5]
[377028685,1754212260281,-1641.7037864,0.00030916,5]
[377028686,1754212260291,-2015.95931533,0.00030916,5]
[377028687,1754212260376,-2000.0,0.00030916,5]
[377028688,1754212260386,-1733.21080716,0.00030916,5]
[377028689,1754212260395,-300.0,0.00030921,5]
[377028690,1754212260406,-350.0,0.00030968,5]
[377028691,1754212260416,-1000.0,0.00030968,5]
[377028692,1754212260425,-200.0,0.00030976,120]
[377028693,1754212260435,-302.04057766,0.0003099,2]
[377028694,1754212260444,-650.0,0.00031012,5]
[377028695,1754212260454,-3000.0,0.00031012,5]
[377028696,1754212260465,-194.31634394,0.00031012,5]
[377028697,1754212260474,-1007.44390508,0.00031012,5]
[377028698,1754212260483,-150.0,0.00031042,2]
[377028699,1754212260493,-150.0,0.00031042,2]
[377028700,1754212260502,-560.0,0.00031092,2]
[377028701,1754212260512,-153.0,0.00031131,30]
[377028702,1754212260521,-153.0,0.00031131,30]
[377028703,1754212260531,-200.0,0.00031309,15]
[377028704,1754212260542,-200.0,0.00031309,15]
[377028705,1754212260551,-300.0,0.00031309,15]
[377028706,1754212260561,-56970.28,0.000314,2]
[377028707,1754212260570,-295.94,0.00031408,30]
[377028708,1754212260579,-200.0,0.00031416,120]
[377028709,1754212260590,-727.42117534,0.00031464,5]
[377028710,1754212260599,-1541.93947362,0.00031464,2]
[377028711,1754212260609,-2526.64978304,0.00031464,5]
[377028712,1754212260618,-2500.0,0.00031464,5]
[377028713,1754212260627,-450.0,0.00031468,5]
[377028714,1754212260637,-500.0,0.000315,5]
[377028715,1754212260646,-214.28701309,0.000315,120]
[377028716,1754212260656,-384.67554926,0.00031516,5]
[377028717,1754212260665,-200.0,0.00031556,120]
[377028718,1754212260674,-750.0,0.0003156,5]
[377028719,1754212260683,-3500.0,0.0003156,5]
[377028720,1754212260692,-660.0,0.0003164,2]
[377028721,1754212260702,-587.0,0.00031781,2]
[377028722,1754212260713,-200.0,0.000319,120]
[377028723,1754212260722,-304.50645,0.00031963,120]
[377028724,1754212260731,-295.94,0.00031993,30]
[377028725,1754212260740,-300.0,0.00032,120]
[377028726,1754212260749,-4451.41249159,0.00032008,2]
[377028727,1754212260758,-3093.94012519,0.00032012,5]
[377028728,1754212260767,-631.58831866,0.00032016,5]
[377028729,1754212260777,-3082.72,0.00032043,8]
[377028730,1754212260786,-503.10768806,0.00032064,5]
[377028731,1754212260795,-850.0,0.00032108,5]
[377028732,1754212260804,-4000.0,0.00032108,5]
[377028733,1754212260813,-760.0,0.00032188,2]
[377028734,1754212260822,-5423.77,0.000322,7]
[377028735,1754212260831,-818.76,0.000322,7]
[377028736,1754212260841,-8533.55446437,0.00032339,2]
[377028737,1754212260851,-1000.0,0.000325,2]
[377028738,1754212260862,-4000.0,0.000325,4]
[377028739,1754212260871,-295.94,0.00032578,30]
[377028740,1754212260881,-308.60243,0.000326,120]
[377028741,1754212260890,-950.0,0.00032656,5]
[377028742,1754212260899,-4500.0,0.00032656,5]
[377028743,1754212260908,-860.0,0.00032736,2]
[377028744,1754212260918,-500.0,0.00032876,120]
[377028745,1754212260929,-400.0,0.00032877,120]
[377028746,1754212260938,-2167.36,0.000329,7]
[377028747,1754212260948,-860.7498552,0.00032923,30]
[377028748,1754212260957,-202.59070537,0.00033,21]
[377028749,1754212260966,-295.94,0.00033162,30]
[377028750,1754212260976,-196.47399686,0.00033204,5]
[377028751,1754212260985,-2115.76643537,0.00033204,5]
[377028752,1754212260994,-2147.0,0.00033204,2]
[377028753,1754212261003,-970.0,0.00033204,2]
[377028754,1754212261012,-960.0,0.00033284,2]
[377028755,1754212261021,-500.0,0.00033342,120]
[377028756,1754212261031,-3082.72,0.00033413,120]
[377028757,1754212261040,-500.0,0.00033573,5]
[377028758,1754212261049,-200.0,0.000336,120]
[377028759,1754212261057,-56970.28,0.000336,14]
[377028760,1754212261066,-295.94,0.00033747,30]
[377028761,1754212261076,-500.0,0.00033808,120]
[377028762,1754212261085,-1060.0,0.00033832,2]
[377028763,1754212261094,-204.0,0.00034,120]
[377028764,1754212261103,-450.02302095,0.00034,30]
[377028765,1754212261112,-312.16666667,0.00034,120]
[377028766,1754212261125,-332.77846083,0.00034,120]
[377028767,1754212261135,-1000.0,0.00034121,5]
[377028768,1754212261144,-818.76,0.000342,7]
[377028769,1754212261153,-166.207959,0.00034247,2]
[377028770,1754212261162,-500.0,0.00034273,120]
[377028771,1754212261171,-308.60243,0.000343,120]
[377028772,1754212261181,-200.0,0.00034321,120]
[377028773,1754212261189,-200.0,0.00034321,15]
[377028774,1754212261199,-200.0,0.00034321,15]
[377028775,1754212261209,-200.0,0.00034321,15]
[377028776,1754212261220,-379.0,0.00034321,15]
[377028777,1754212261229,-823.0,0.00034351,2]
[377028778,1754212261239,-1160.0,0.00034379,2]
[377028779,1754212261248,-5423.77,0.000344,14]
[377028780,1754212261258,-774.88030331,0.00034668,5]
[377028781,1754212261267,-1341.64344264,0.00034728,12]
[377028782,1754212261277,-500.0,0.00034739,120]
[377028783,1754212261286,-3082.72,0.00034783,120]
[377028784,1754212261296,-3150.59514428,0.0003487,4]
[377028785,1754212261306,-1260.0,0.00034927,2]
[377028786,1754212261315,-10611.53686941,0.00035,2]
[377028787,1754212261325,-1249.5771254,0.00035,60]
[377028788,1754212261334,-3851.09333366,0.00035,60]
[377028789,1754212261343,-650.75872643,0.00035,2]
[377028790,1754212261351,-300.0,0.00035,120]
[377028791,1754212261360,-500.0,0.00035,120]
[377028792,1754212261370,-6664.0,0.00035,60]
[377028793,1754212261379,-200.03304756,0.00035,10]
[377028794,1754212261388,-212274.84100612,0.00035,120]
[377028795,1754212261397,-4000.0,0.00035,4]
[377028796,1754212261407,-500.0,0.00035205,120]
[377028797,1754212261418,-200.0,0.000353,120]
[377028798,1754212261428,-2167.36,0.000353,7]
[377028799,1754212261437,-1360.0,0.00035475,2]
[377028800,1754212261446,-2000.0,0.0003549,90]
[377028801,1754212261454,-400.0,0.00035616,120]
[377028802,1754212261463,-500.0,0.00035671,120]
[377028803,1754212261472,-205.0,0.00036,120]
[377028804,1754212261481,-308.60243,0.00036,120]
[377028805,1754212261490,-56970.28,0.00036,14]
[377028806,1754212261499,-1460.0,0.00036023,2]
[377028807,1754212261508,-500.0,0.00036136,120]
[377028808,1754212261518,-3082.72,0.00036153,120]
[377028809,1754212261527,-2144.0,0.00036204,2]
[377028810,1754212261538,-970.0,0.00036204,2]
[377028811,1754212261547,-202.45981921,0.0003621,2]
[377028812,1754212261556,-263.34266683,0.0003624,2]
[377028813,1754212261565,-2000.0,0.0003649,90]
[377028814,1754212261574,-304.50645,0.0003653,120]
[377028815,1754212261583,-1512.45552219,0.00036571,2]
[377028816,1754212261592,-500.0,0.00036602,120]
[377028817,1754212261602,-818.76,0.000367,7]
[377028818,1754212261611,-3019.83578607,0.00036788,120]
[377028819,1754212261622,-5423.77,0.000369,14]
[377028820,1754212261631,-200.0,0.00037,120]
[377028821,1754212261641,-150.0,0.00037,120]
[377028822,1754212261650,-150.0,0.00037,120]
[377028823,1754212261659,-500.0,0.00037068,120]
[377028824,1754212261668,-1152.0,0.0003713,2]
[377028825,1754212261677,-212.85139,0.000372,120]
[377028826,1754212261687,-2000.0,0.0003749,90]
[377028827,1754212261696,-150.0,0.000375,112]
[377028828,1754212261705,-2717.18856128,0.000375,4]
[377028829,1754212261714,-3082.72,0.00037523,120]
[377028830,1754212261723,-500.0,0.00037534,120]
[377028831,1754212261732,-200.0,0.00037623,15]
[377028832,1754212261742,-200.0,0.00037623,15]
[377028833,1754212261751,-200.0,0.00037623,15]
[377028834,1754212261760,-200.0,0.00037623,15]
[377028835,1754212261769,-200.0,0.00037623,15]
[377028836,1754212261778,-371.0,0.00037623,15]
[377028837,1754212261788,-308.60243,0.000377,120]
[377028838,1754212261797,-1009.09836413,0.000378,2]
[377028839,1754212261806,-500.0,0.00038,120]
[377028840,1754212261815,-400.0,0.00038,120]
[377028841,1754212261824,-2009.37132412,0.00038,30]
[377028842,1754212261834,-500.0,0.00038,120]
[377028843,1754212261843,-2167.36,0.000381,7]
[377028844,1754212261852,-400.0,0.00038356,120]
[377028845,1754212261861,-500.0,0.00038465,120]
[377028846,1754212261871,-2000.0,0.0003849,90]
[377028847,1754212261880,-17796.93164545,0.000385,120]
[377028848,1754212261890,-1382.9758527,0.0003866,7]
[377028849,1754212261899,-99696.84635794,0.0003868,15]
[377028850,1754212261908,-382.29242,0.000387,120]
[377028851,1754212261918,-56970.28,0.000387,14]
[377028852,1754212261927,-3082.72,0.00038893,120]
[377028853,1754212261936,-463.37618802,0.00038931,120]
[377028854,1754212261945,-3963.7576424,0.00039,120]
[377028855,1754212261955,-1000.0,0.00039,120]
[377028856,1754212261965,-450.0,0.00039041,7]
[377028857,1754212261974,-970.0,0.00039204,2]
[377028858,1754212261983,-818.76,0.000393,7]
[377028859,1754212261992,-308.60243,0.000394,120]
[377028860,1754212262002,-2000.0,0.0003949,90]
[377028861,1754212262012,-1000.0,0.000395,2]
[377028862,1754212262022,-5423.77,0.000395,14]
[377028863,1754212262031,-1010.02,0.000398,120]
[377028864,1754212262041,-150.5,0.0003987,120]
[377028865,1754212262051,-500.0,0.00039877,120]
[377028866,1754212262060,-150.5,0.0003988,120]
[377028867,1754212262070,-213.39,0.0003988,120]
[377028868,1754212262150,-150.5,0.0003989,120]
[377028869,1754212262160,-150.5,0.0003989,120]
[377028870,1754212262170,-377.68346015,0.000399,120]
[377028871,1754212262180,-500.0,0.00039973,5]
[377028872,1754212262190,-500.0,0.00039983,15]
[377028873,1754212262200,-500.0,0.00039983,10]
[377028874,1754212262211,-357.25690419,0.00039999,31]
[377028875,1754212262221,-500.0,0.00039999,31]
[377028876,1754212262231,-500.0,0.00039999,31]
[377028877,1754212262241,-188.76625419,0.00039999,31]
[377028878,1754212262250,-500.0,0.0004,2]
[377028879,1754212262259,-29819.8926362,0.0004,7]
[377028880,1754212262269,-1106.65851629,0.0004,30]
[377028881,1754212262279,-556.41912172,0.0004,30]
[377028882,1754212262288,-655.98488297,0.0004,120]
[377028883,1754212262297,-207.41619323,0.0004,120]
[377028884,1754212262307,-500.0,0.0004,120]
[377028885,1754212262316,-501.98,0.0004,120]
[377028886,1754212262325,-629368.75060066,0.0004,30]
[377028887,1754212262494,-1198.36,0.00027945,10]
[377028888,1754212262503,-1198.36,0.00027945,10]
[377028889,1754212262514,-1198.36,0.00027945,10]
[377028890,1754212262523,-1198.36,0.00027945,10]
[377028891,1754212262535,-1198.36,0.00027945,10]
[377028892,1754212262545,-1198.36,0.00027945,10]
[377028893,1754212262554,-1198.36,0.00027945,10]
[377028894,1754212262563,-1198.36,0.00027945,10]
[377028895,1754212262573,-1198.36,0.00027945,10]
[377028896,1754212262583,-1000.0,0.00028,2]
[377028897,1754212262594,-500.323,0.00028106,2]
[377028898,1754212262603,-160.0,0.00034,120]
[377028899,1754212262615,-8533.55446437,0.00036932,2]
[377028900,1754212262627,-122596.89803563,0.0004,30]
[377028901,1754212262638,-579.41204265,0.0004,30]
[377028902,1754212262653,-276.34609954,0.00027945,10]
[377028903,1754212263090,152.0,0.00024,120]
[377028904,1754212263134,152.0,0.000256,120]
[377028905,1754212263843,152.0,0.000272,120]
[377028906,1754212265204,152.0,0.000288,120]
[377028908,1754212291897,200.0,0.00027766,120]
[377028910,1754212328106,150.0,0.00022,2]
[377028925,1754212491109,153.0,0.00024,120]
[377028926,1754212492819,153.0,0.000253,120]
[377028927,1754212494214,153.0,0.000265,120]
[377028928,1754212495946,153.0,0.000278,120]
[377028929,1754212497364,153.0,0.00029,120]
[377028930,1754212500970,162.512281,0.00013699,2]
[377028932,1754212542530,304.50645,0.00027397,120]
[377028942,1754212643302,2650.42481545,0.00023062,2]
[377028945,1754212892073,200.0,0.00027732,120]
[377028946,1754212950795,200.0,0.00028461,120]
[377028950,1754213146152,-151.54332178,0.00023467,2]
[377028951,1754213146175,-162.512281,0.00023973,2]
[377028952,1754213146197,-214.41131181,0.00024619,2]
[377028953,1754213146218,-248.60370888,0.00024719,2]
[377028954,1754213146238,-175.42745,0.00024789,2]
[377028955,1754213146258,-160.0,0.00024938,2]
[377028956,1754213146279,-160.0,0.00024938,2]
[377028957,1754213146303,-150.0,0.00025023,2]
[377028958,1754213146470,-191.73247125,0.00025064,2]
[377028962,1754213194095,-184.61979272,0.00025064,2]
[377028982,1754213323576,360.58035419,0.000275,120]
[377028983,1754213371321,200.0,0.00029648,120]
[377028987,1754213430830,200.0,0.0002993,120]
[377029010,1754213436309,-288.0,0.00023999,2]
[377029011,1754213436319,-300.0,0.00023999,2]
[377029013,1754213436328,-1200.0,0.00023999,2]